bitfinex-derivatives/quotes_BNBF0:USTF0_20250330
["timestamp","ask_amount","ask_price","bid_price","bid_amount"]
[1743297875252,0.3298697,606.3,604.8,0.33068783]
[1743297875750,1.16252192,606.29,604.8,0.33068783]
[1743297875947,0.32988602,606.27,604.8,0.33068783]
[1743297876145,1.16252192,606.26,604.8,0.33068783]
[1743297876349,0.32990234,606.24,604.8,0.33068783]
[1743297876850,1.16252192,606.23,604.8,0.33068783]
[1743297877047,0.32991867,606.21,604.8,0.33068783]
[1743297877251,1.16252192,606.2,604.8,0.33068783]
[1743297877546,0.329935,606.18,604.8,0.33068783]
[1743297878152,1.16252192,606.17,604.8,0.33068783]
[1743297878352,0.32994588,606.16,604.8,0.33068783]
[1743297878753,1.4924678,606.16,604.8,0.33068783]
[1743297879152,0.28741921,606.15,604.8,0.33068783]
[1743297879453,0.32995677,606.14,604.8,0.33068783]
[1743297881654,1.497,606.13,604.8,0.33068783]
[1743297881956,0.32996766,606.12,604.8,0.33068783]
[1743297885755,1.277,606.11,604.8,0.33068783]
[1743297885958,0.32997855,606.1,604.8,0.33068783]
[1743297888054,0.28744296,606.09,604.8,0.33068783]
[1743297888255,0.32998944,606.08,604.8,0.33068783]
[1743297893961,0.2874762,606.07,604.8,0.33068783]
[1743297894156,0.33000577,606.05,604.8,0.33068783]
[1743297896961,0.28746907,606.04,604.8,0.33068783]
[1743297897262,0.33002211,606.02,604.8,0.33068783]
[1743297899562,1.085,606.01,604.8,0.33068783]
[1743297899957,0.330033,606.0,604.8,0.33068783]
[1743297900262,1.366,605.99,604.8,0.33068783]
[1743297900857,0.33004389,605.98,604.8,0.33068783]
[1743297901260,0.61752246,605.98,604.8,0.33068783]
[1743297902760,0.33004389,605.98,604.8,0.33068783]
[1743297904166,0.28747857,605.97,604.8,0.33068783]
[1743297904567,0.33005478,605.96,604.8,0.33068783]
[1743297911971,0.28748807,605.95,604.8,0.33068783]
[1743297912165,0.33006568,605.94,604.8,0.33068783]
[1743297915171,0.28749282,605.93,604.8,0.33068783]
[1743297915365,0.33007657,605.92,604.8,0.33068783]
[1743297920574,1.243,605.91,604.8,0.33068783]
[1743297920872,0.33008747,605.9,604.8,0.33068783]
[1743297921074,0.61759217,605.9,604.8,0.33068783]
[1743297926677,0.33008747,605.9,604.8,0.33068783]
[1743297927281,0.33008747,605.9,604.98,1.48401714]
[1743297927880,1.147,605.89,604.98,1.48401714]
[1743297928082,0.33009836,605.88,604.98,1.48401714]
[1743297930687,0.33009836,605.88,605.01,1.48401714]
[1743297932386,0.33009836,605.88,604.87,0.28745839]
[1743297932387,0.33009836,605.88,604.88,1.48401714]
[1743297934181,0.33009836,605.88,604.87,0.28748926]
[1743297934786,0.945,605.87,604.87,0.28748926]
[1743297934988,0.33010926,605.86,604.87,0.28748926]
[1743297938690,0.33010926,605.86,604.8,0.33068783]
[1743297939086,0.33010926,605.86,604.87,0.28750114]
[1743297939290,1.16151578,605.85,604.87,0.28750114]
[1743297939698,0.33012016,605.84,604.87,0.28750114]
[1743297939997,1.49163594,605.84,604.87,0.28750114]
[1743297940198,1.16151578,605.83,604.87,0.28750114]
[1743297940998,1.16151578,605.82,604.87,0.28750114]
[1743297941699,1.16151578,605.81,604.8,0.33068783]
[1743297941993,1.16151578,605.81,604.87,0.28752845]
[1743297942403,1.16151578,605.8,604.87,0.28752845]
[1743297943196,1.16151578,605.79,604.87,0.28752845]
[1743297943900,1.49166864,605.78,604.87,0.28752845]
[1743297944101,0.33015831,605.77,604.87,0.28752845]
[1743297944502,1.16151578,605.76,604.87,0.28752845]
[1743297944703,0.33016921,605.75,604.48,1.48401714]
[1743297944903,0.33016921,605.75,604.47,1.48401714]
[1743297945197,1.16151578,605.74,604.87,0.2875736]
[1743297945396,0.33018011,605.73,604.47,1.48401714]
[1743297946001,1.16151578,605.72,604.47,1.48401714]
[1743297946202,1.49170679,605.71,604.48,0.28757716]
[1743297946403,0.33019646,605.7,604.48,0.28757716]
[1743297947198,1.16151578,605.69,604.53,1.48401714]
[1743297947705,1.16151578,605.68,604.53,1.48401714]
[1743297947902,0.33021282,605.67,604.53,1.48401714]
[1743297948401,1.16151578,605.66,604.53,1.48401714]
[1743297948903,0.33022372,605.65,604.53,1.48401714]
[1743297949505,1.4917395,605.65,604.53,1.48401714]
[1743297949703,1.4917395,605.65,604.5,0.28758786]
[1743297950105,1.16151578,605.64,604.5,0.28758786]
[1743297950503,0.33023463,605.63,604.5,0.28758786]
[1743297950708,1.49175041,605.63,604.24,1.48401714]
[1743297950908,1.49175041,605.63,604.25,0.33098882]
[1743297951112,1.49175041,605.63,604.5,0.2876354]
[1743297951302,0.33023463,605.63,604.25,0.33098882]
[1743297952310,0.33023463,605.63,604.26,0.28762589]
[1743297952510,0.33023463,605.63,604.27,0.33097787]
[1743297952711,1.16151578,605.62,604.27,0.33097787]
[1743297953012,0.33024553,605.61,604.37,1.48401714]
[1743297953212,0.33024553,605.61,604.37,1.81494025]
[1743297954503,0.33024553,605.61,604.37,0.33092311]
[1743297956312,0.33024553,605.61,604.44,1.48401714]
[1743297957312,0.33024553,605.61,604.47,1.48401714]
[1743297959911,2.11,605.6,604.47,1.48401714]
[1743297961117,2.11,605.6,604.75,1.48401714]
[1743297962414,2.11,605.6,604.83,1.48401714]
[1743297964218,2.11,605.6,604.57,0.28755578]
[1743297964219,2.11,605.6,604.71,1.48401714]
[1743297965920,2.11,605.6,604.57,1.48401714]
[1743297966124,2.11,605.6,604.63,0.28757003]
[1743297968825,2.11,605.6,604.6,1.48401714]
[1743297969027,2.11,605.6,604.63,0.2875831]
[1743297971727,2.11,605.6,604.5,1.48401714]
[1743297972226,2.11,605.6,604.63,0.28759618]
[1743297972427,2.11,605.6,604.5,1.48401714]
[1743297972826,2.11,605.6,604.51,0.33084647]
[1743297973131,2.11,605.6,604.52,1.48401714]
[1743297973427,2.11,605.6,604.53,0.33083552]
[1743297973829,2.11,605.6,604.53,0.61839724]
[1743297975626,2.11,605.6,604.53,2.10241438]
[1743297975824,0.852,605.6,604.53,2.10241438]
[1743297976926,0.33024553,605.61,604.53,2.10241438]
[1743297977333,0.33024553,605.61,604.76,1.48401714]
[1743297979034,0.33024553,605.61,604.72,1.48401714]
[1743297979432,0.973,605.6,604.72,1.48401714]
[1743297980437,0.973,605.6,604.68,1.48401714]
[1743297980839,1.056,605.59,604.68,1.48401714]
[1743297981537,1.056,605.59,604.66,1.48401714]
[1743297983038,1.056,605.59,604.64,1.77159549]
[1743297983732,1.056,605.59,604.64,1.48401714]
[1743297984135,1.056,605.59,604.64,1.77160143]
[1743297985843,1.056,605.59,604.67,1.48401714]
[1743297987437,1.056,605.59,604.7,1.48401714]
[1743297988535,1.056,605.59,604.73,1.48401714]
[1743297992444,1.056,605.59,604.9,1.48401714]
[1743297994344,1.056,605.59,604.77,0.28752964]
[1743297995742,1.056,605.59,604.76,1.48401714]
[1743297996044,1.056,605.59,604.77,0.28754627]
[1743297998739,1.056,605.59,604.53,0.33083552]
[1743297999144,1.056,605.59,604.54,0.287614]
[1743297999541,1.293,605.58,604.54,0.287614]
[1743298001545,1.293,605.58,604.67,1.48401714]
[1743298003749,1.293,605.58,604.71,1.48401714]
[1743298005450,1.293,605.58,604.64,0.28753914]
[1743298006048,2.375,605.58,604.64,0.28753914]
[1743298007755,2.375,605.58,604.62,1.48401714]
[1743298007950,2.375,605.58,604.64,0.28754984]
[1743298010854,2.375,605.58,604.55,1.48401714]
[1743298011151,2.375,605.58,604.64,0.28755815]
[1743298011354,2.375,605.58,604.56,0.3308191]
[1743298012655,2.375,605.58,604.57,0.28756409]
[1743298012848,2.375,605.58,604.58,0.33080816]
[1743298013350,2.375,605.58,604.59,1.48401714]
[1743298015256,2.375,605.58,604.58,2.1023787]
[1743298016752,2.375,605.58,604.58,1.8148253]
[1743298017257,2.375,605.58,604.58,2.10237989]
[1743298017457,2.375,605.58,604.66,1.48401714]
[1743298018552,2.375,605.58,604.74,1.48401714]
[1743298019760,2.375,605.58,604.58,0.61836275]
[1743298019761,2.375,605.58,604.79,1.48401714]
[1743298021252,2.375,605.58,604.84,1.48401714]
[1743298024057,2.375,605.58,604.85,0.33066049]
[1743298025466,2.375,605.58,604.91,1.48401714]
[1743298027275,2.375,605.58,604.89,1.48401714]
[1743298029571,2.375,605.58,604.85,0.33066049]
[1743298031178,2.375,605.58,604.87,1.48401714]
[1743298031480,2.375,605.58,604.87,1.8146667]
[1743298031875,2.375,605.58,604.88,0.33064409]
[1743298033882,2.375,605.58,604.94,1.48401714]
[1743298034076,2.375,605.58,604.95,0.33060583]
[1743298066509,2.375,605.58,605.07,1.48401714]
[1743298067010,2.375,605.58,605.08,0.3305348]
[1743298067804,2.375,605.58,605.4,1.48401714]
[1743298068309,1.39152698,606.72,605.4,1.48401714]
[1743298068510,0.32965221,606.7,605.4,1.48401714]
[1743298068706,0.30321947,606.69,605.4,1.48401714]
[1743298068905,0.32966851,606.67,605.4,1.48401714]
[1743298069104,0.30321947,606.66,605.4,1.48401714]
[1743298069310,0.32968482,606.64,605.4,1.48401714]
[1743298070108,0.32968482,606.64,605.27,1.48401714]
[1743298070312,0.28719032,606.63,605.27,1.48401714]
[1743298070502,0.32970112,606.61,605.27,1.48401714]
[1743298071404,1.431,606.6,605.27,1.48401714]
[1743298071603,0.32971743,606.58,605.27,1.48401714]
[1743298072311,0.28724484,606.57,605.32,1.48401714]
[1743298072511,0.32973374,606.55,605.32,1.48401714]
[1743298074115,0.28724959,606.54,605.32,1.48401714]
[1743298074507,0.28724959,606.54,605.17,0.28724959]
[1743298074817,0.32975004,606.52,605.17,0.28724959]
[1743298075409,1.16869727,606.51,605.17,0.28724959]
[1743298075613,0.32976636,606.49,605.17,0.28724959]
[1743298076216,1.16869727,606.48,605.17,0.28724959]
[1743298076515,0.32978267,606.46,605.17,0.28724959]
[1743298076914,0.32978267,606.46,605.08,0.3305348]
[1743298077310,1.16869727,606.45,605.08,0.3305348]
[1743298077511,0.32979898,606.43,605.08,0.3305348]
[1743298077707,1.16869727,606.42,605.08,0.3305348]
[1743298077912,0.32980986,606.41,605.08,0.3305348]
[1743298078112,0.61711518,606.41,605.09,0.28730532]
[1743298078709,1.16869727,606.4,605.09,0.28730532]
[1743298078911,0.32982074,606.39,605.09,0.28730532]
[1743298079417,1.49851801,606.39,605.09,0.28730532]
[1743298079714,1.16869727,606.38,605.09,0.28730532]
[1743298080017,1.16869727,606.38,605.08,0.3305348]
[1743298080217,1.45599784,606.37,605.09,0.28730057]
[1743298080418,1.78582946,606.37,605.09,0.28730057]
[1743298080612,1.16869727,606.36,605.09,0.28730057]
[1743298080814,1.49853433,606.36,605.09,0.28730057]
[1743298081017,0.3298425,606.35,605.09,0.28730057]
[1743298081413,1.16869727,606.34,605.09,0.28730057]
[1743298081610,0.32985338,606.33,605.09,0.28730057]
[1743298082121,1.16869727,606.32,605.09,0.28730057]
[1743298082319,0.32986426,606.31,605.09,0.28730057]
[1743298082520,1.49856153,606.31,605.09,0.28730057]
[1743298083221,1.16869727,606.3,605.09,0.28730057]
[1743298083520,0.32987514,606.29,605.09,0.28730057]
[1743298083916,1.16869727,606.28,605.11,1.48401714]
[1743298084221,0.32988602,606.27,605.11,1.48401714]
[1743298084622,1.49858329,606.27,605.11,1.48401714]
[1743298085223,1.16869727,606.26,605.11,1.48401714]
[1743298085423,0.3298969,606.25,605.24,1.48401714]
[1743298086025,1.16869727,606.24,605.24,1.48401714]
[1743298086220,1.49859961,606.24,605.24,1.48401714]
[1743298086422,1.16869727,606.23,605.24,1.48401714]
[1743298087019,1.16869727,606.22,605.24,1.48401714]
[1743298087424,1.16869727,606.22,605.25,1.48401714]
[1743298087726,1.16869727,606.21,605.25,1.48401714]
[1743298088327,1.16869727,606.2,605.25,1.48401714]
[1743298088826,1.16869727,606.19,605.12,1.48401714]
[1743298089326,1.16869727,606.19,605.15,0.28730176]
[1743298089829,1.404,606.2,605.15,0.28730176]
[1743298090627,1.16869727,606.19,605.19,1.48401714]
[1743298091224,1.404,606.2,605.19,1.48401714]
[1743298092929,1.404,606.2,605.15,0.28730176]
[1743298094830,1.404,606.2,605.08,0.3305348]
[1743298095231,1.404,606.2,605.15,0.28730532]
[1743298095729,1.404,606.2,605.16,0.3304911]
[1743298097435,1.404,606.2,605.37,1.48401714]
[1743298099237,1.404,606.2,605.16,0.3304911]
[1743298099238,1.404,606.2,605.18,1.48401714]
[1743298099430,1.404,606.2,605.19,0.33047472]
[1743298102843,1.404,606.2,605.2,1.48401714]
[1743298103038,1.404,606.2,605.21,0.3304638]
[1743298103233,2.547,606.2,605.21,0.3304638]
[1743298106134,2.547,606.2,605.25,1.48401714]
[1743298106345,2.547,606.2,605.26,0.3304365]
[1743298107942,2.547,606.2,605.31,1.48401714]
[1743298108144,2.547,606.2,605.31,1.81442635]
[1743298109639,2.547,606.2,605.31,0.33040921]
[1743298132763,2.547,606.2,605.33,1.48401714]
[1743298134665,2.547,606.2,605.37,1.48401714]
[1743298136169,2.547,606.2,605.31,0.61765168]
[1743298136170,2.547,606.2,605.42,1.48401714]
[1743298137475,2.547,606.2,605.54,1.48401714]
[1743298140174,2.547,606.2,605.56,1.48401714]
[1743298141772,2.547,606.2,605.51,1.48401714]
[1743298143677,2.547,606.2,605.46,0.28722114]
[1743298145778,2.547,606.2,605.31,0.33040921]
[1743298146280,2.547,606.2,605.46,0.28722588]
[1743298146478,2.547,606.2,605.31,0.33040921]
[1743298147177,2.547,606.2,605.32,0.28723417]
[1743298148881,2.547,606.2,605.31,0.33040921]
[1743298149080,2.547,606.2,605.5,1.48401714]
[1743298150787,2.547,606.2,605.39,0.28722232]
[1743298151785,2.547,606.2,605.31,0.33040921]
[1743298152286,2.547,606.2,605.39,0.28724484]
[1743298152585,2.547,606.2,605.31,0.33040921]
[1743298153286,2.547,606.2,605.32,0.2872567]
[1743298154893,2.547,606.2,605.31,0.33040921]
[1743298155290,2.547,606.2,605.32,0.2872899]
[1743298157796,2.547,606.2,605.24,1.48401714]
[1743298158202,2.547,606.2,605.25,0.28729583]
[1743298160798,2.547,606.2,605.12,1.48401714]
[1743298161195,2.547,606.2,605.25,0.28731006]
[1743298161392,2.547,606.2,605.12,1.48401714]
[1743298162793,2.547,606.2,605.13,0.28731006]
[1743298163796,2.547,606.2,605.11,1.48401714]
[1743298164094,2.547,606.2,605.13,0.28734446]
[1743298164491,1.49862683,606.19,605.13,0.28734446]
[1743298165295,0.32992956,606.19,605.13,0.28734446]
[1743298166894,0.32992956,606.19,604.66,1.48401714]
[1743298167101,0.32992956,606.19,604.67,0.33075892]
[1743298168191,0.28742278,606.18,604.68,0.28742278]
[1743298168393,0.32994044,606.17,604.69,0.33074798]
[1743298168598,1.76194044,606.17,604.69,0.33074798]
[1743298169901,0.32995133,606.15,604.69,0.33074798]
[1743298173302,0.28744533,606.14,604.69,0.33074798]
[1743298173502,0.32996766,606.12,604.69,0.33074798]
[1743298176400,0.32996766,606.12,604.68,0.28741684]
[1743298177002,1.16869727,606.11,604.68,0.28741684]
[1743298177201,1.45624829,606.11,604.68,0.28741684]
[1743298177700,1.16869727,606.1,604.68,0.28741684]
[1743298178203,0.32998944,606.08,604.68,0.28741684]
[1743298178900,1.16869727,606.07,603.6,1.48401714]
[1743298179101,0.33000577,606.05,603.72,0.3312794]
[1743298179505,1.16869727,606.04,603.72,0.3312794]
[1743298179703,0.33002211,606.02,603.72,0.3312794]
[1743298180205,0.33002211,606.02,603.73,0.28764372]
[1743298180206,0.28764372,606.01,603.73,0.28764372]
[1743298180507,1.45634099,606.01,603.73,0.28764372]
[1743298181002,1.45634099,606.01,603.84,0.33121356]
[1743298181207,0.33003844,605.99,603.84,0.33121356]
[1743298181807,1.16869727,605.98,603.84,0.33121356]
[1743298182104,0.33005478,605.96,603.84,0.33121356]
[1743298182506,1.16869727,605.95,603.84,0.33121356]
[1743298182703,0.33007113,605.93,603.84,0.33121356]
[1743298183504,1.16869727,605.92,603.84,0.33121356]
[1743298183704,0.33008202,605.91,603.84,0.33121356]
[1743298184107,1.16869727,605.9,603.84,0.33121356]
[1743298184509,0.33009292,605.89,603.84,0.33121356]
[1743298184908,1.16869727,605.88,603.84,0.33121356]
[1743298185110,0.33010381,605.87,603.84,0.33121356]
[1743298185309,1.78647571,605.87,603.84,0.33121356]
[1743298186309,1.16869727,605.86,603.84,0.33121356]
[1743298186511,0.33011471,605.85,603.84,0.33121356]
[1743298190709,0.33011471,605.85,603.87,1.48401714]
[1743298190908,0.33011471,605.85,603.89,0.33118614]
[1743298192711,0.33011471,605.85,604.01,1.48401714]
[1743298192913,0.33011471,605.85,604.03,0.33110938]
[1743298195114,0.33011471,605.85,604.33,1.48401714]
[1743298195314,0.33011471,605.85,604.35,0.33093406]
[1743298195515,1.029,605.84,604.35,0.33093406]
[1743298196117,0.923,605.83,604.35,0.33093406]
[1743298196920,0.923,605.83,604.37,1.48401714]
[1743298197121,0.923,605.83,604.39,0.33091215]
[1743298198721,0.923,605.83,604.44,1.48401714]
[1743298198916,0.923,605.83,604.45,0.33087931]
[1743298204726,0.33013106,605.82,604.45,0.33087931]
[1743298209829,0.33013106,605.82,604.45,1.81489645]
[1743298211735,0.33013106,605.82,604.54,1.48401714]
[1743298211935,0.33013106,605.82,604.55,0.33082458]
[1743298213036,0.33013106,605.82,604.78,1.48401714]
[1743298215336,0.33013106,605.82,604.56,0.28748095]
[1743298216034,1.029,605.84,604.56,0.28748095]
[1743298216836,1.194,605.83,604.56,0.28748095]
[1743298217832,1.194,605.83,604.2,1.48401714]
[1743298218238,1.194,605.83,604.56,0.28757241]
[1743298218436,1.194,605.83,604.2,1.48401714]
[1743298219141,1.194,605.83,604.21,0.28757241]
[1743298219940,1.194,605.83,604.62,1.48401714]
[1743298222039,1.194,605.83,604.63,1.48401714]
[1743298223542,1.194,605.83,604.84,1.48401714]
[1743298223736,2.441,605.83,604.84,1.48401714]
[1743298224541,2.441,605.83,604.85,1.48401714]
[1743298226040,2.441,605.83,604.86,1.48401714]
[1743298229143,2.441,605.83,604.85,1.48401714]
[1743298231347,2.441,605.83,604.9,1.48401714]
[1743298233150,2.441,605.83,604.92,1.48401714]
[1743298233952,2.441,605.83,604.8,1.48401714]
[1743298236150,2.441,605.83,604.78,0.28747026]
[1743298238656,2.441,605.83,604.88,1.48401714]
[1743298240957,2.441,605.83,604.96,1.48401714]
[1743298242357,2.441,605.83,604.95,1.48401714]
[1743298243751,2.441,605.83,604.92,1.48401714]
[1743298245355,2.441,605.83,604.94,1.48401714]
[1743298246657,2.441,605.83,605.02,1.48401714]
[1743298249256,2.441,605.83,604.95,0.28741803]
[1743298249257,2.441,605.83,605.01,1.48401714]
[1743298251359,2.441,605.83,605.0,1.48401714]
[1743298255361,2.441,605.83,604.98,1.77141855]
[1743298256964,2.441,605.83,604.96,1.48401714]
[1743298257366,2.441,605.83,604.97,0.28741328]
[1743298259966,2.441,605.83,604.93,1.48401714]
[1743298260168,2.441,605.83,604.97,0.28741684]
[1743298262876,2.441,605.83,604.96,1.48401714]
[1743298263069,2.441,605.83,604.97,0.28743465]
[1743298265975,2.441,605.83,604.74,1.48401714]
[1743298266274,2.441,605.83,604.97,0.28743939]
[1743298266476,2.441,605.83,604.75,0.33071517]
[1743298266874,2.441,605.83,604.81,1.48401714]
[1743298267178,2.441,605.83,604.82,0.33067689]
[1743298268872,2.441,605.83,604.93,1.48401714]
[1743298270476,2.441,605.83,605.03,1.48401714]
[1743298272078,2.441,605.83,605.17,1.48401714]
[1743298275789,2.441,605.83,605.2,1.48401714]
[1743298276885,2.441,605.83,605.16,1.48401714]
[1743298278984,2.441,605.83,605.17,1.48401714]
[1743298281790,2.441,605.83,605.18,1.48401714]
[1743298283197,2.441,605.83,605.07,0.28737293]
[1743298283993,2.441,605.83,604.98,1.48401714]
[1743298284190,2.441,605.83,605.07,0.28743227]
[1743298284690,2.441,605.83,604.98,1.48401714]
[1743298285096,2.441,605.83,604.83,1.48401714]
[1743298285397,2.441,605.83,604.99,0.28743227]
[1743298285597,2.441,605.83,604.83,1.48401714]
[1743298285994,2.441,605.83,604.99,0.28745008]
[1743298286197,2.441,605.83,604.83,1.48401714]
[1743298286594,2.441,605.83,604.82,0.33067689]
[1743298286595,2.441,605.83,604.99,0.28745008]
[1743298286998,2.441,605.83,604.88,1.48401714]
[1743298288196,2.441,605.83,604.89,1.77143754]
[1743298289901,2.441,605.83,604.89,1.48401714]
[1743298290302,2.441,605.83,604.89,1.77143635]
[1743298290702,2.441,605.83,605.05,1.48401714]
[1743298293104,2.441,605.83,605.03,1.48401714]
[1743298294698,2.441,605.83,605.04,1.48401714]
[1743298296806,2.441,605.83,604.99,1.77140906]
[1743298298702,2.441,605.83,605.01,1.48401714]
[1743298300508,2.441,605.83,605.05,1.48401714]
[1743298301609,2.441,605.83,605.04,1.48401714]
[1743298304912,2.441,605.83,604.82,0.33067689]
[1743298304913,2.441,605.83,605.11,1.48401714]
[1743298306209,2.441,605.83,605.03,0.28742752]
[1743298307911,2.441,605.83,604.82,0.33067689]
[1743298308312,2.441,605.83,605.03,0.28745839]
[1743298308513,2.441,605.83,604.82,0.33067689]
[1743298309414,2.441,605.83,604.83,0.28746076]
[1743298311012,2.441,605.83,604.82,0.33067689]
[1743298311215,2.441,605.83,604.83,0.28745839]
[1743298313819,2.441,605.83,604.87,1.48401714]
[1743298315113,2.441,605.83,604.86,1.48401714]
[1743298317821,2.441,605.83,605.05,1.48401714]
[1743298319717,2.441,605.83,605.12,1.48401714]
[1743298321825,2.441,605.83,605.24,1.48401714]
[1743298323624,2.441,605.83,605.07,0.28734683]
[1743298324026,2.441,605.83,605.08,0.3305348]
[1743298338434,2.441,605.83,605.13,1.48401714]
[1743298338635,2.441,605.83,605.14,0.33050203]
[1743298340437,2.441,605.83,605.17,1.48401714]
[1743298340630,2.441,605.83,605.18,0.33048018]
[1743298341134,2.441,605.83,605.18,1.81449732]
[1743298342434,2.441,605.83,605.19,1.48401714]
[1743298342635,2.441,605.83,605.2,0.33046926]
[1743298360954,2.441,605.83,605.21,1.48401714]
[1743298361252,2.441,605.83,605.22,0.33045834]
[1743298364453,2.441,605.83,605.23,1.48401714]
[1743298364648,1.1614406,607.19,605.23,1.48401714]
[1743298364847,1.1614406,607.18,605.23,1.48401714]
[1743298365249,1.44844499,607.18,605.23,1.48401714]
[1743298365448,0.28700439,607.18,605.23,1.48401714]
[1743298365953,1.1614406,607.17,605.23,1.48401714]
[1743298366646,0.32940246,607.16,605.25,0.33044196]
[1743298367054,1.122,607.15,605.25,0.33044196]
[1743298368247,1.365,607.14,605.25,0.33044196]
[1743298371362,0.32941874,607.13,605.25,0.33044196]
[1743298373864,1.14983732,607.12,605.25,0.33044196]
[1743298374065,0.32942959,607.11,605.25,0.33044196]
[1743298374869,1.14983732,607.1,605.25,0.33044196]
[1743298375066,0.32944044,607.09,605.25,0.33044196]
[1743298375269,1.47927776,607.09,605.25,0.33044196]
[1743298375870,1.14983732,607.08,605.25,0.33044196]
[1743298376469,1.76632378,607.07,605.25,0.33044196]
[1743298376669,0.32945672,607.06,605.25,0.33044196]
[1743298377070,0.32945672,607.06,605.36,1.48401714]
[1743298377270,0.32945672,607.06,605.38,0.330371]
[1743298377471,0.3142511,607.06,605.38,0.330371]
[1743298379170,0.3142511,607.06,605.47,1.48401714]
[1743298380672,0.3142511,607.06,605.5,1.48401714]
[1743298381073,0.3142511,607.06,605.52,0.33029462]
[1743298385976,1.04,607.05,605.52,0.33029462]
[1743298386177,0.32946758,607.04,605.52,0.33029462]
[1743298386772,0.32946758,607.04,605.66,1.48401714]
[1743298386971,0.32946758,607.04,605.67,0.33021282]
[1743298392382,0.28699374,607.03,605.67,0.33021282]
[1743298392576,0.32947843,607.02,605.67,0.33021282]
[1743298393177,0.32947843,607.02,605.71,1.48401714]
[1743298394083,1.772,607.01,605.71,1.48401714]
[1743298394482,1.772,607.01,605.72,1.48401714]
[1743298394878,0.32948929,607.0,605.72,1.48401714]
[1743298395383,0.28699847,606.99,605.72,1.48401714]
[1743298395580,0.32950014,606.98,605.72,1.48401714]
[1743298395985,0.32950014,606.98,605.67,0.33021282]
[1743298397179,0.32950014,606.98,605.71,1.48401714]
[1743298397783,0.32950014,606.98,605.71,1.81420815]
[1743298397984,0.32950014,606.98,605.72,0.33018556]
[1743298398984,0.32950014,606.98,605.88,1.48401714]
[1743298400182,0.32950014,606.98,605.95,1.48401714]
[1743298402087,0.32950014,606.98,605.92,1.48401714]
[1743298403886,0.32950014,606.98,605.81,1.48401714]
[1743298404083,0.32950014,606.98,605.82,0.33013106]
[1743298404283,0.32950014,606.98,605.84,0.28690383]
[1743298404485,0.32950014,606.98,605.85,0.33011471]
[1743298405890,0.32950014,606.98,606.04,1.48401714]
[1743298407293,0.32950014,606.98,605.99,1.48401714]
[1743298408389,0.32950014,606.98,605.95,0.28692157]
[1743298409495,1.47,606.97,605.95,0.28692157]
[1743298409693,1.47,606.97,605.96,1.48401714]
[1743298411498,1.47,606.97,605.95,0.28694641]
[1743298412990,1.47,606.97,605.91,1.48401714]
[1743298413391,1.47,606.97,605.95,0.28695233]
[1743298414697,1.421,606.96,605.95,0.28695233]
[1743298414894,1.750511,606.96,605.95,0.28695233]
[1743298415096,0.32951643,606.95,605.95,0.28695233]
[1743298415999,0.32951643,606.95,605.85,0.33011471]
[1743298416507,0.32951643,606.95,605.95,0.28699374]
[1743298416703,0.32951643,606.95,605.85,0.33011471]
[1743298417304,0.32951643,606.95,605.86,0.28701978]
[1743298419104,0.32951643,606.95,605.85,0.33011471]
[1743298419304,0.32951643,606.95,605.86,0.28699374]
[1743298422004,1.16400849,606.94,605.86,0.28699374]
[1743298422205,0.32952729,606.93,605.86,0.28699374]
[1743298428006,0.32952729,606.93,605.61,1.48401714]
[1743298429412,0.28703398,606.92,605.62,0.28703398]
[1743298429610,0.32953815,606.91,605.62,0.28703398]
[1743298431119,0.32953815,606.91,605.51,1.48401714]
[1743298431317,0.32953815,606.91,605.62,0.28704819]
[1743298431711,0.32953815,606.91,605.52,0.33029462]
[1743298432411,0.32953815,606.91,605.53,0.28704464]
[1743298432818,0.32953815,606.91,605.54,0.33028371]
[1743298433913,1.417,606.9,605.56,1.48401714]
[1743298434117,0.32954901,606.89,605.56,1.48401714]
[1743298435922,0.32954901,606.89,605.54,0.61733071]
[1743298436916,0.32954901,606.89,605.54,0.33028371]
[1743298437423,0.32954901,606.89,605.54,0.6173461]
[1743298439923,0.32954901,606.89,605.54,0.33028371]
[1743298440321,0.28706358,606.88,605.54,0.61734729]
[1743298440624,0.32955987,606.87,605.54,0.61734729]
[1743298442428,1.462,606.86,605.54,0.61734729]
[1743298442628,0.32957073,606.85,605.54,0.61734729]
[1743298443024,0.32957073,606.85,605.54,0.33028371]
[1743298443229,0.32957073,606.85,605.63,1.48401714]
[1743298444730,0.32957073,606.85,605.81,1.48401714]